bitfinex-derivatives/quotes_BTCF0:USTF0_20250402
["timestamp","ask_amount","ask_price","bid_price","bid_amount"]
[1743587358467,0.15148246,85109.0,85102.0,0.2325954]
[1743587358661,0.03397636,85109.0,85102.0,0.2325954]
[1743587361372,0.00017636,85109.0,85102.0,0.2325954]
[1743587361670,0.00017636,85109.0,85102.0,0.2668954]
[1743587361974,0.03567636,85109.0,85102.0,0.2668954]
[1743587362477,0.03567636,85109.0,85102.0,0.2325954]
[1743587362770,0.0348,85108.0,85102.0,0.2325954]
[1743587362974,0.0348,85108.0,85102.0,0.1528354]
[1743587363174,0.0365,85107.0,85102.0,0.2325554]
[1743587363564,0.0361,85106.0,85102.0,0.2325554]
[1743587369073,0.0361,85106.0,85102.0,0.1528354]
[1743587369376,0.12413817,85103.0,85102.0,0.1528354]
[1743587370168,0.12305816,85103.0,85102.0,0.1528354]
[1743587371380,1e-07,85103.0,85102.0,0.1528354]
[1743587374182,1e-07,85103.0,85102.0,0.1870354]
[1743587379891,1e-07,85103.0,85102.0,0.675901]
[1743587380685,0.00025636,85109.0,85108.0,0.1175071]
[1743587380877,0.00133637,85109.0,85108.0,0.4793871]
[1743587381080,0.00025636,85109.0,85108.0,0.5142871]
[1743587381479,0.00025636,85109.0,85108.0,0.5490871]
[1743587383379,0.00025636,85109.0,85108.0,0.56094851]
[1743587384880,0.00017636,85109.0,85108.0,0.56094851]
[1743587385284,8e-05,85113.0,85112.0,0.1175016]
[1743587385482,8e-05,85113.0,85112.0,0.1186216]
[1743587386082,0.0004,85119.0,85118.0,0.1174933]
[1743587386279,0.00148001,85119.0,85118.0,0.5590533]
[1743587386478,0.0004,85119.0,85118.0,0.4793733]
[1743587386684,0.00148001,85119.0,85118.0,0.5590533]
[1743587388385,0.03598001,85119.0,85118.0,0.5590533]
[1743587393484,0.0349,85119.0,85118.0,0.5590533]
[1743587393684,0.1523919,85119.0,85118.0,0.5590533]
[1743587393886,0.03558,85119.0,85118.0,0.5590533]
[1743587394085,0.1530719,85119.0,85118.0,0.5590533]
[1743587394286,0.30857407,85119.0,85118.0,0.4793733]
[1743587396291,0.30857407,85119.0,85118.0,0.68910986]
[1743587397693,0.12378217,85119.0,85118.0,0.68910986]
[1743587397888,0.0004,85119.0,85118.0,0.68910986]
[1743587398083,0.0004,85119.0,85118.0,0.72270986]
[1743587398289,0.0339,85119.0,85118.0,0.72270986]
[1743587398482,0.1839919,85119.0,85118.0,0.72270986]
[1743587398682,0.31148459,85119.0,85118.0,0.72270986]
[1743587403798,0.31148459,85119.0,85118.0,0.5129733]
[1743587404309,0.19399269,85119.0,85118.0,0.5129733]
[1743587404595,0.31148459,85119.0,85118.0,0.5474733]
[1743587405204,0.27888459,85119.0,85118.0,0.5474733]
[1743587405404,0.12789269,85119.0,85118.0,0.5474733]
[1743587405699,0.24426458,85119.0,85118.0,0.5474733]
[1743587405901,0.24534459,85119.0,85118.0,0.5474733]
[1743587407500,0.31094459,85119.0,85118.0,0.5474733]
[1743587408289,0.24534459,85119.0,85118.0,0.5474733]
[1743587408693,0.12785269,85119.0,85118.0,0.5474733]
[1743587408889,0.12785269,85119.0,85118.0,0.56286071]
[1743587409506,0.12677268,85119.0,85118.0,0.56286071]
[1743587409807,0.0004,85119.0,85118.0,0.5474733]
[1743587410005,0.0004,85119.0,85118.0,0.5628646]
[1743587412004,0.0004,85119.0,85118.0,0.82721334]
[1743587415215,0.0004,85119.0,85118.0,0.5474733]
[1743587416006,0.0004,85119.0,85118.0,0.562833]
[1743587417113,0.0004,85119.0,85118.0,0.5474733]
[1743587418015,0.0004,85119.0,85118.0,0.56285561]
[1743587419106,0.0004,85119.0,85118.0,0.5474733]
[1743587422217,0.03015681,85131.0,85130.0,0.1174767]
[1743587422416,0.06287682,85131.0,85130.0,0.1185967]
[1743587422607,0.19314178,85131.0,85130.0,0.2131967]
[1743587423021,0.16298497,85131.0,85130.0,0.2131967]
[1743587423318,0.00112001,85131.0,85130.0,0.2131967]
[1743587424815,0.00112001,85131.0,85130.0,0.22469409]
[1743587425823,0.1175512,85134.0,85133.0,0.1174726]
[1743587426023,0.1175512,85134.0,85133.0,0.1186326]
[1743587426322,0.24993634,85134.0,85133.0,0.1814326]
[1743587426521,0.25105635,85134.0,85133.0,0.1814326]
[1743587429119,0.16658515,85134.0,85133.0,0.1814326]
[1743587430512,0.28405635,85134.0,85133.0,0.1814326]
[1743587434224,0.13358515,85134.0,85133.0,0.1814326]
[1743587434433,8e-05,85134.0,85133.0,0.1814326]
[1743587435125,0.0004,85135.0,85134.0,0.1174712]
[1743587435327,0.00148001,85135.0,85134.0,0.1819512]
[1743587435732,0.11894991,85135.0,85134.0,0.1819512]
[1743587436132,0.15204991,85135.0,85134.0,0.03358]
[1743587436433,0.64829263,85135.0,85134.0,0.1185512]
[1743587436624,0.64829263,85135.0,85134.0,0.1174712]
[1743587437520,0.64829263,85135.0,85134.0,0.1185512]
[1743587438832,0.64829263,85135.0,85134.0,0.1501512]
[1743587439630,0.28749263,85135.0,85134.0,0.1501512]
[1743587443930,0.17002273,85135.0,85134.0,0.1501512]
[1743587444230,0.28749263,85135.0,85134.0,0.1826512]
[1743587446128,0.31949263,85135.0,85134.0,0.1826512]
[1743587446328,0.31949263,85135.0,85134.0,0.1501512]
[1743587447739,0.31949263,85135.0,85134.0,0.1820512]
[1743587449532,0.31949263,85135.0,85134.0,0.392103]
[1743587450527,0.31949263,85135.0,85134.0,0.424603]
[1743587452337,0.31949263,85135.0,85134.0,0.392703]
[1743587452935,0.31949263,85135.0,85134.0,0.423403]
[1743587453244,0.13692273,85135.0,85134.0,0.423403]
[1743587453437,0.25331262,85135.0,85134.0,0.423403]
[1743587453635,0.25439263,85135.0,85134.0,0.423403]
[1743587453842,0.28489263,85135.0,85134.0,0.423403]
[1743587454035,0.31589263,85135.0,85134.0,0.423403]
[1743587454236,0.31589263,85135.0,85134.0,0.2133512]
[1743587459034,0.28489263,85135.0,85134.0,0.2133512]
[1743587460042,0.25439263,85135.0,85134.0,0.2133512]
[1743587461037,0.1174837,85125.0,85124.0,0.34970425]
[1743587461231,0.4782837,85125.0,85124.0,0.35046425]
[1743587461443,0.4782837,85125.0,85124.0,0.46794925]
[1743587461444,0.60646274,85125.0,85124.0,0.46794925]
[1743587461637,0.27776274,85125.0,85124.0,0.46794925]
[1743587461837,0.12817904,85125.0,85124.0,0.56264925]
[1743587462039,0.12757903,85125.0,85124.0,0.56264925]
[1743587462246,0.24506273,85125.0,85124.0,0.56264925]
[1743587462436,0.1174837,85125.0,85124.0,0.56264925]
[1743587462743,0.24668663,85125.0,85124.0,0.56264925]
[1743587464142,0.24744663,85125.0,85124.0,0.56264925]
[1743587464643,0.24744663,85125.0,85124.0,0.212945]
[1743587465433,0.24744663,85125.0,85124.0,0.09546]
[1743587465749,0.24744663,85125.0,85111.0,0.1175026]
[1743587465750,0.117503,85112.0,85111.0,0.1175026]
[1743587466042,0.117503,85112.0,85111.0,0.0006]
[1743587466246,0.28340176,85112.0,85111.0,0.0006]
[1743587467038,0.31490176,85112.0,85111.0,0.0006]
[1743587468341,0.31490176,85112.0,85111.0,0.118103]
[1743587468537,0.31490176,85112.0,85111.0,0.148803]
[1743587468743,0.31490176,85112.0,85111.0,0.180003]
[1743587469145,0.31490176,85112.0,85111.0,0.0625]
[1743587469346,0.31490176,85112.0,85111.0,0.0318]
[1743587469961,0.31490176,85112.0,85111.0,0.149303]
[1743587473851,0.31490176,85112.0,85111.0,0.0318]
[1743587474050,0.31490176,85112.0,85111.0,0.148703]
[1743587474250,0.31490176,85112.0,85111.0,0.0318]
[1743587474455,0.31490176,85112.0,85111.0,0.0312]
[1743587475157,0.31490176,85112.0,85111.0,0.03184]
[1743587475551,0.0587534,85109.0,85098.0,0.0587604]
[1743587475857,0.1175251,85095.0,85094.0,0.00107007]
[1743587476044,0.4791651,85095.0,85094.0,0.11799647]
[1743587476244,0.60703458,85095.0,85094.0,0.00107007]
[1743587476444,0.60703458,85095.0,85094.0,0.18349647]
[1743587476653,0.60703458,85095.0,85094.0,0.18409647]
[1743587477146,0.60703458,85095.0,85094.0,0.06657007]
[1743587477348,0.61563453,85095.0,85094.0,0.03347007]
[1743587477652,0.64593453,85095.0,85094.0,0.03347007]
[1743587477858,0.67603453,85095.0,85094.0,0.03347007]
[1743587480161,0.67603453,85095.0,85094.0,0.06347007]
[1743587481259,0.61563453,85095.0,85094.0,0.06347007]
[1743587482056,0.61563453,85095.0,85094.0,0.18099647]
[1743587483148,0.64843453,85095.0,85094.0,0.18099647]
[1743587485453,0.28763453,85095.0,85094.0,0.18099647]
[1743587485657,0.28763453,85095.0,85094.0,0.21379647]
[1743587487752,0.25483453,85095.0,85094.0,0.21379647]
[1743587490764,0.25483453,85095.0,85094.0,0.09627007]
[1743587490965,0.1175361,85087.0,85086.0,0.00017626]
[1743587491160,0.4793361,85087.0,85086.0,0.00017626]
[1743587491355,0.67868363,85087.0,85086.0,0.00017626]
[1743587492970,0.69018416,85087.0,85086.0,0.00017626]
[1743587493776,0.67868363,85087.0,85086.0,0.00017626]
[1743587498674,0.1175403,85084.0,85083.0,0.0303]
[1743587498878,0.1175458,85080.0,85079.0,0.0386233]
[1743587499083,0.1175693,85063.0,85053.0,0.37240228]
[1743587499282,0.1186493,85063.0,85060.0,0.1175729]
[1743587499581,0.25057155,85063.0,85062.0,0.00107024]
[1743587499787,0.28227155,85063.0,85062.0,0.00107024]
[1743587499971,0.28227155,85063.0,85062.0,0.14874094]
[1743587500180,0.28227155,85063.0,85062.0,0.14934094]
[1743587500374,0.25057155,85063.0,85062.0,0.14934094]
[1743587504189,0.25057155,85063.0,85062.0,0.17994094]
[1743587511184,0.13300225,85063.0,85062.0,0.17994094]
[1743587511391,0.00108,85063.0,85062.0,0.17994094]
[1743587511690,0.1176483,85064.0,85063.0,0.1175693]
[1743587511895,0.1187283,85064.0,85063.0,0.1186493]
[1743587512197,0.1187283,85064.0,85063.0,0.1826493]
[1743587512695,0.00116,85064.0,85063.0,0.1826493]
[1743587512889,0.00108,85064.0,85063.0,0.1826493]
[1743587513292,0.1175667,85065.0,85064.0,0.1763504]
[1743587513502,0.1186467,85065.0,85064.0,0.2413504]
[1743587516091,0.1186467,85065.0,85064.0,0.6021504]
[1743587516295,0.1175667,85065.0,85064.0,0.6021504]
[1743587516692,8e-05,85066.0,85065.0,0.1175665]
[1743587516899,0.00108,85066.0,85065.0,0.1185665]
[1743587517093,0.00108,85066.0,85065.0,0.1791665]
[1743587517491,0.1186451,85066.0,85065.0,0.1791665]
[1743587518200,0.00108,85066.0,85065.0,0.1791665]
[1743587519502,0.1186451,85066.0,85065.0,0.5399665]
[1743587519802,0.00108,85066.0,85065.0,0.5399665]
[1743587519997,8e-05,85066.0,85065.0,0.5399665]
[1743587521300,0.1176451,85066.0,85065.0,0.5399665]
[1743587521602,0.1186451,85066.0,85065.0,0.5399665]
[1743587522400,0.00108,85066.0,85065.0,0.5399665]
[1743587522598,8e-05,85066.0,85065.0,0.5399665]
[1743587522905,0.00108,85066.0,85065.0,0.5399665]
[1743587524905,0.00017626,85071.0,85070.0,0.1175596]
[1743587525203,0.00017626,85071.0,85070.0,0.1182796]
[1743587525403,0.00017626,85071.0,85070.0,0.2118796]
[1743587527105,6e-08,85071.0,85070.0,0.2118796]
[1743587527292,0.10555195,85075.0,85074.0,0.1175541]
[1743587527497,0.10663195,85075.0,85074.0,0.1182341]
[1743587527703,0.10663195,85075.0,85074.0,0.1798341]
[1743587529702,0.00108,85075.0,85074.0,0.1798341]
[1743587529902,8e-05,85080.0,85074.0,0.1798341]
[1743587530107,8e-05,85080.0,85079.0,0.4783472]
[1743587530296,0.00116,85080.0,85079.0,0.5759272]
[1743587533203,0.00116,85080.0,85079.0,0.58774161]
[1743587533510,8e-05,85080.0,85079.0,0.58774161]
[1743587533902,0.00108,85080.0,85079.0,0.58774161]
[1743587534108,8e-05,85080.0,85079.0,0.58774161]
[1743587539826,0.00116,85080.0,85079.0,0.58774161]
[1743587540518,8e-05,85080.0,85079.0,0.58774161]
[1743587540823,0.00116,85080.0,85079.0,0.58774161]
[1743587542219,8e-05,85080.0,85079.0,0.58774161]
[1743587546023,0.00017626,85083.0,85082.0,0.117543]
[1743587546325,0.00133626,85083.0,85082.0,0.118223]
[1743587546630,0.1175527,85075.0,85074.0,0.00017626]
[1743587546814,0.1304533,85075.0,85074.0,0.00077626]
[1743587547118,0.1175541,85074.0,85073.0,0.2813772]
[1743587547325,0.1189141,85074.0,85073.0,0.2819772]
[1743587547526,0.30476975,85074.0,85073.0,0.2819772]
[1743587547725,0.117561,85069.0,85063.0,0.41704492]
[1743587547916,0.1175679,85064.0,85063.0,0.41704492]
[1743587548113,0.11912791,85064.0,85063.0,0.41704492]
[1743587548425,0.24198356,85064.0,85063.0,0.53461422]
[1743587549620,0.24198356,85064.0,85063.0,0.41704492]
[1743587551527,0.30518356,85064.0,85063.0,0.41704492]
[1743587553428,0.1175693,85063.0,85062.0,0.00047024]
[1743587553622,0.11920931,85063.0,85062.0,0.00047024]
[1743587553928,0.30654972,85063.0,85062.0,0.00047024]
[1743587554514,0.30654972,85063.0,85062.0,0.11804094]
[1743587554715,0.12578042,85063.0,85062.0,0.11804094]
[1743587555020,0.00164001,85063.0,85062.0,0.18144094]
[1743587555423,0.11920931,85063.0,85062.0,0.18144094]
[1743587555632,0.00164001,85063.0,85062.0,0.18144094]
[1743587558023,0.00164001,85063.0,85062.0,0.54224094]
[1743587559828,8e-05,85065.0,85064.0,0.1175679]
[1743587560015,0.00164001,85065.0,85064.0,0.1175679]
[1743587560217,0.1176465,85065.0,85064.0,0.1175679]
[1743587560427,0.11920651,85065.0,85064.0,0.1175679]
[1743587560627,0.00164001,85065.0,85064.0,0.1175679]
[1743587561222,0.11920651,85065.0,85064.0,0.1175679]
[1743587561422,0.254442,85065.0,85064.0,0.1175679]
[1743587562227,0.318842,85065.0,85064.0,0.1479679]
[1743587562733,0.286542,85065.0,85064.0,0.1479679]
[1743587562928,0.286542,85065.0,85064.0,0.1792679]
[1743587567440,0.254442,85065.0,85064.0,0.1792679]
[1743587571339,0.319242,85065.0,85064.0,0.1792679]
[1743587572041,0.319242,85065.0,85064.0,0.1479679]
[1743587575637,0.319242,85065.0,85064.0,0.1784679]
[1743587576136,0.287142,85065.0,85064.0,0.1784679]
[1743587576839,0.4276048,85065.0,85064.0,0.1784679]
[1743587581041,0.3949048,85065.0,85064.0,0.1784679]
[1743587581460,0.3949048,85065.0,85064.0,0.0609]
[1743587581753,0.4604048,85065.0,85064.0,0.1784679]
[1743587581957,0.4604048,85065.0,85064.0,0.0609]
[1743587582459,0.4604048,85065.0,85064.0,0.1784679]
[1743587583159,0.4604048,85065.0,85064.0,0.1479679]
[1743587584363,0.319942,85065.0,85064.0,0.1479679]
[1743587585457,0.319862,85065.0,85064.0,0.1479679]
[1743587588155,0.286762,85065.0,85064.0,0.1479679]
[1743587588356,0.1691955,85065.0,85064.0,0.1479679]
[1743587588556,0.1367955,85065.0,85064.0,0.1780679]
[1743587588861,0.00017626,85083.0,85071.0,0.1175582]
[1743587589064,0.21098639,85072.0,85071.0,0.4789582]
[1743587589365,0.21098639,85072.0,85071.0,0.5583582]
[1743587591560,0.00108001,85072.0,85071.0,0.5583582]
[1743587594771,8e-05,85073.0,85072.0,0.1175568]
[1743587594967,8e-05,85073.0,85072.0,0.1181568]
[1743587595167,8e-05,85073.0,85072.0,0.1806568]
[1743587596058,8e-05,85073.0,85072.0,0.2120568]
[1743587596264,0.1176355,85073.0,85072.0,0.2120568]
[1743587596459,0.24152112,85073.0,85072.0,0.2120568]
[1743587596666,0.24260113,85073.0,85072.0,0.2120568]
[1743587597066,0.27290113,85073.0,85072.0,0.2120568]
[1743587597466,0.24260113,85073.0,85072.0,0.2120568]
[1743587600579,0.27260113,85073.0,85072.0,0.2120568]
[1743587600979,0.30370113,85073.0,85072.0,0.2120568]
[1743587601180,0.27260113,85073.0,85072.0,0.2120568]
[1743587603278,0.27260113,85073.0,85072.0,0.0327]
[1743587603279,0.63340113,85073.0,85072.0,0.0327]
[1743587603473,0.66350113,85073.0,85072.0,0.0321]
[1743587603672,0.66350113,85073.0,85072.0,0.0327]
[1743587603877,0.66350113,85073.0,85072.0,0.0321]
[1743587604380,0.66350113,85073.0,85072.0,0.0327]
[1743587604778,0.66350113,85073.0,85072.0,0.0321]
[1743587605182,0.1175693,85063.0,85061.0,0.26963064]
[1743587605480,0.11864931,85063.0,85062.0,0.00115024]
[1743587605680,0.2776683,85063.0,85062.0,0.00115024]
[1743587606682,0.3102683,85063.0,85062.0,0.00115024]
[1743587609883,0.4510955,85063.0,85062.0,0.00115024]
[1743587614099,0.3102683,85063.0,85062.0,0.00047024]
[1743587614584,0.3102683,85063.0,85062.0,0.00107024]
[1743587614779,0.3102683,85063.0,85062.0,0.00047024]
[1743587615890,0.3102683,85063.0,85062.0,0.06207024]
[1743587616191,0.3102683,85063.0,85062.0,0.17964094]
[1743587616489,0.3102683,85063.0,85062.0,0.18024094]
[1743587616880,0.3102683,85063.0,85062.0,0.06267024]
[1743587617277,0.3102683,85063.0,85062.0,0.17964094]
[1743587618491,0.3102683,85063.0,85062.0,0.06207024]
[1743587618999,0.3102683,85063.0,85062.0,0.06267024]
[1743587620400,0.3102683,85063.0,85062.0,0.03127024]
[1743587620588,0.3102683,85063.0,85062.0,0.14884094]
[1743587620991,0.3102683,85063.0,85062.0,0.17894094]
[1743587621703,0.3102683,85063.0,85062.0,0.03127024]
[1743587621892,0.3414683,85063.0,85062.0,0.03067024]
[1743587622288,0.3414683,85063.0,85046.0,0.00047033]
[1743587622289,0.1175914,85047.0,85046.0,0.00047033]
[1743587622491,0.47951141,85047.0,85046.0,0.00111033]
[1743587622698,0.61558726,85047.0,85046.0,0.00111033]
[1743587622884,0.67648726,85047.0,85046.0,0.00111033]
[1743587624090,0.68528941,85047.0,85046.0,0.00111033]
[1743587624295,0.68528941,85047.0,85046.0,0.11870313]
[1743587624491,0.68528941,85047.0,85046.0,0.15110313]
[1743587625597,0.32448941,85047.0,85046.0,0.15110313]
[1743587625797,0.29378941,85047.0,85046.0,0.15162313]
[1743587625998,0.29378941,85047.0,85046.0,0.18412313]
[1743587629607,0.39928956,85047.0,85046.0,0.18412313]
[1743587630097,0.36908956,85047.0,85046.0,0.18412313]
[1743587631097,0.40118956,85047.0,85046.0,0.18412313]
[1743587632895,0.40118956,85047.0,85046.0,0.06653033]
[1743587633503,0.40118956,85047.0,85046.0,0.09863033]
[1743587633703,0.40118956,85047.0,85046.0,0.21622313]
[1743587634005,0.40118956,85047.0,85046.0,0.09863033]
[1743587634399,0.29568941,85047.0,85046.0,0.09863033]
[1743587635701,0.29568941,85047.0,85046.0,0.09747033]
[1743587635908,0.29568941,85047.0,85046.0,0.09807033]
[1743587636302,0.29568941,85047.0,85046.0,0.09747033]
[1743587636607,0.29568941,85047.0,85046.0,0.09807033]
[1743587640495,0.1176025,85039.0,85030.0,0.00047042]
[1743587640704,0.11868251,85039.0,85033.0,0.0318]
[1743587640912,0.31850391,85039.0,85034.0,0.0317]
[1743587642810,0.31850391,85039.0,85038.0,0.00077637]
[1743587643001,0.28790391,85039.0,85038.0,0.00017637]
[1743587643205,0.28790391,85039.0,85038.0,0.00081637]
[1743587643509,0.28790391,85039.0,85038.0,0.11842017]
[1743587644006,0.28790391,85039.0,85038.0,0.18332017]
[1743587644205,0.28790391,85039.0,85038.0,0.06571637]
[1743587647211,0.28790391,85039.0,85035.0,0.117608]
[1743587647212,0.1176149,85030.0,85029.0,0.10125583]
[1743587647414,0.1764507,85017.0,85015.0,0.1234167]
[1743587647602,0.1779707,85017.0,85016.0,0.1176331]
[1743587647802,0.00152,85017.0,85016.0,0.1182731]
[1743587648005,0.0588157,85018.0,85017.0,0.1764458]
[1743587648209,0.0588957,85018.0,85017.0,0.1771258]
[1743587648409,0.18731583,85018.0,85017.0,0.1771258]
[1743587648611,0.18875583,85018.0,85017.0,0.1771258]
[1743587649221,0.30638733,85018.0,85017.0,0.1771258]
[1743587651617,0.30638733,85018.0,85017.0,0.0594957]
[1743587652419,0.30638733,85018.0,85017.0,0.0914957]
[1743587655811,0.12994013,85018.0,85017.0,0.0914957]
[1743587656116,0.24749163,85018.0,85017.0,0.0914957]
[1743587658916,0.12986013,85018.0,85017.0,0.0914957]
[1743587659612,0.24749163,85018.0,85017.0,0.0914957]
[1743587659812,0.12986013,85018.0,85017.0,0.0914957]
[1743587660210,0.00144,85018.0,85017.0,0.0914957]
[1743587660410,0.1176297,85020.0,85019.0,0.1176301]
[1743587661422,0.1764405,85022.0,85021.0,0.1176274]
[1743587661919,0.30615444,85022.0,85021.0,0.1176274]
[1743587662620,0.12971394,85022.0,85021.0,0.1176274]
[1743587662824,0.10555119,85024.0,85023.0,0.1176246]
[1743587663323,0.10555119,85024.0,85023.0,0.1487246]
[1743587663822,0.10699119,85024.0,85023.0,0.1487246]
[1743587665023,0.10699119,85024.0,85023.0,0.1494046]
[1743587665814,0.00144,85024.0,85023.0,0.1494046]
[1743587666214,0.00144,85024.0,85023.0,0.1810046]
[1743587666918,0.00144,85024.0,85023.0,0.5418046]
[1743587668924,0.10563119,85025.0,85024.0,0.1176232]
[1743587669233,0.00152,85025.0,85024.0,0.1182232]
[1743587669524,8e-05,85025.0,85024.0,0.1509232]
[1743587672030,0.00152,85025.0,85024.0,0.1509232]
[1743587673525,8e-05,85025.0,85024.0,0.1509232]
[1743587673826,0.00152,85025.0,85024.0,0.1509232]
[1743587675833,0.00152,85025.0,85024.0,0.5117232]
[1743587676623,0.03222,85025.0,85024.0,0.5117232]
[1743587679737,0.03222,85025.0,85024.0,0.5448232]
[1743587680137,0.03078,85025.0,85024.0,0.5448232]
[1743587680633,0.03222,85025.0,85024.0,0.5448232]
[1743587680937,0.1408272,85038.0,85037.0,0.1176052]
[1743587681132,0.1422672,85038.0,85037.0,0.1176052]
[1743587681639,0.1408272,85038.0,85037.0,0.1176052]
[1743587681832,0.0326,85041.0,85040.0,0.1176011]
[1743587682038,0.03404,85041.0,85040.0,0.12952083]
[1743587682239,0.16080714,85041.0,85040.0,0.12952083]
[1743587682437,0.27840684,85041.0,85040.0,0.12952083]
[1743587682637,0.27840684,85041.0,85040.0,0.15972083]
[1743587682638,0.16080714,85041.0,85040.0,0.15972083]
[1743587685337,0.16080714,85041.0,85040.0,0.16120083]
[1743587687342,0.16080714,85041.0,85040.0,0.19300083]
[1743587687738,0.16080714,85041.0,85040.0,0.1810811]
[1743587689538,0.19350714,85041.0,85040.0,0.1810811]
[1743587689948,0.19350714,85041.0,85040.0,0.19284349]
[1743587691546,0.16080714,85041.0,85040.0,0.19284349]
[1743587691946,0.15936714,85041.0,85040.0,0.19284349]
[1743587692143,0.00017637,85046.0,85045.0,0.1175942]
[1743587692344,0.03207637,85046.0,85045.0,0.1175942]
[1743587692641,0.03207637,85046.0,85045.0,0.2134942]
[1743587692846,0.00017637,85046.0,85045.0,0.2134942]
[1743587695352,0.00017637,85046.0,85045.0,0.2141742]
[1743587696055,0.00169637,85046.0,85045.0,0.2141742]
[1743587696456,0.00169637,85046.0,85045.0,0.5749742]
[1743587697249,0.00017637,85046.0,85045.0,0.5749742]
[1743587699253,0.00017637,85046.0,85045.0,0.2141742]
[1743587699459,0.00161637,85046.0,85045.0,0.5749742]
[1743587699654,0.00017637,85046.0,85045.0,0.5749742]
[1743587703563,0.00017637,85046.0,85045.0,0.6541342]
[1743587708354,0.00017637,85046.0,85045.0,0.5749742]
[1743587708559,0.00017637,85046.0,85045.0,0.6220342]
[1743587708859,0.06417637,85046.0,85045.0,0.6220342]
[1743587709167,0.03127637,85046.0,85045.0,0.6220342]
[1743587713260,0.00017637,85046.0,85045.0,0.6220342]
[1743587714365,0.00017637,85046.0,85045.0,0.5428742]
[1743587714566,0.03077637,85046.0,85045.0,0.5428742]
[1743587714773,0.03077637,85046.0,85045.0,0.6219942]
[1743587714974,0.03077637,85046.0,85045.0,0.5907942]
[1743587715270,0.03077637,85046.0,85045.0,0.5581942]
[1743587716670,0.03077637,85046.0,85045.0,0.6208942]
[1743587722765,0.03077637,85046.0,85045.0,0.5885942]
[1743587723165,0.03077637,85046.0,85045.0,0.5094742]
[1743587724465,0.03077637,85046.0,85045.0,0.4790742]
[1743587724971,0.03077637,85046.0,85045.0,0.5411742]
[1743587727280,0.16135685,85046.0,85045.0,0.1182742]
[1743587727480,0.28038965,85046.0,85045.0,0.1182742]
[1743587728273,0.31348965,85046.0,85045.0,0.1182742]
[1743587728469,0.19589685,85046.0,85045.0,0.1182742]
[1743587728670,0.31348965,85046.0,85045.0,0.1503742]
[1743587729473,0.31348965,85046.0,85045.0,0.1182742]
[1743587730579,0.19589685,85046.0,85045.0,0.1182742]
[1743587730780,0.31348965,85046.0,85045.0,0.1834742]
[1743587730981,0.19589685,85046.0,85045.0,0.1834742]
[1743587733077,0.31348965,85046.0,85045.0,0.1834742]
[1743587733584,0.31348965,85046.0,85045.0,0.1182742]
[1743587733783,0.19589685,85046.0,85045.0,0.1182742]
[1743587734289,0.19589685,85046.0,85045.0,0.1816742]
[1743587737389,0.16529685,85046.0,85045.0,0.1816742]
[1743587737693,0.00161637,85046.0,85045.0,0.1816742]
[1743587737891,0.00017637,85046.0,85045.0,0.1816742]
[1743587740882,0.00017637,85046.0,85045.0,0.5424742]
[1743587747590,0.24427401,85046.0,85045.0,0.5424742]
[1743587747992,0.24575401,85046.0,85045.0,0.1182742]
[1743587748196,0.31035401,85046.0,85045.0,0.1182742]
[1743587752005,0.31035401,85046.0,85045.0,0.1175942]
[1743587755117,0.31035401,85046.0,85045.0,0.1181942]
[1743587755300,0.31035401,85046.0,85045.0,0.1175942]
[1743587757208,0.31035401,85046.0,85045.0,0.1181942]
[1743587757605,0.31035401,85046.0,85045.0,0.1175942]
[1743587758503,0.1176011,85040.0,85039.0,0.2399964]
[1743587758703,0.1190811,85040.0,85039.0,0.0006]
[1743587758911,0.1176038,85038.0,85037.0,0.1176048]
[1743587759109,0.1191238,85038.0,85037.0,0.1190848]
[1743587759312,0.30556483,85038.0,85037.0,0.1190848]
[1743587766324,0.30556483,85038.0,85037.0,0.1499848]
[1743587767412,0.30556483,85038.0,85037.0,0.1819848]
[1743587768519,0.30556483,85038.0,85037.0,0.00148]
[1743587768818,0.1176121,85032.0,85031.0,0.21136903]
[1743587769125,0.11949211,85032.0,85031.0,0.21136903]
[1743587769332,0.30973306,85032.0,85031.0,0.21136903]
[1743587772228,0.30973306,85032.0,85031.0,0.32898253]
[1743587772619,0.30973306,85032.0,85031.0,0.1176135]
[1743587772820,0.1176135,85031.0,85030.0,0.1481148]
[1743587773022,0.11949351,85031.0,85030.0,0.1481148]
[1743587773225,0.31475245,85031.0,85030.0,0.0305]
[1743587775227,0.31475245,85031.0,85030.0,0.1481149]
[1743587776024,0.31475245,85031.0,85030.0,0.1800149]
[1743587777632,0.31475245,85031.0,85030.0,0.0624]
[1743587779629,0.31475245,85031.0,85030.0,0.1800149]
[1743587780440,0.31475245,85031.0,85030.0,0.0624]
[1743587780833,0.28165245,85031.0,85030.0,0.0624]
[1743587782242,0.28165245,85031.0,85030.0,0.1800149]
[1743587786236,0.24965245,85031.0,85030.0,0.1800149]
[1743587787238,0.28215245,85031.0,85030.0,0.1800149]
[1743587799749,0.42306791,85031.0,85030.0,0.1800149]
[1743587803437,0.42306791,85031.0,85030.0,0.0624]
[1743587803438,0.28215245,85031.0,85030.0,0.0624]
[1743587803854,0.34735245,85031.0,85029.0,0.00017637]
[1743587804043,0.1176149,85030.0,85029.0,0.00017637]
[1743587804349,0.11949491,85030.0,85029.0,0.00017637]
[1743587804543,0.30964242,85030.0,85029.0,0.00017637]
[1743587806744,0.36683515,85030.0,85029.0,0.00017637]
[1743587807146,0.72763515,85030.0,85029.0,0.00017637]
[1743587808445,0.36683515,85030.0,85029.0,0.00017637]
[1743587808644,0.72763515,85030.0,85029.0,0.00017637]
[1743587812050,0.1176232,85024.0,85023.0,0.097]
[1743587812249,0.1764456,85019.0,85018.0,0.033]
[1743587812450,0.17832561,85019.0,85018.0,0.033]
[1743587812636,0.31015598,85019.0,85018.0,0.033]
[1743587812841,0.31015598,85019.0,85018.0,0.098]
[1743587814251,0.31899607,85019.0,85018.0,0.098]
[1743587814452,0.34999607,85019.0,85018.0,0.098]
[1743587815153,0.31899607,85019.0,85018.0,0.2156315]
[1743587817553,0.14255047,85019.0,85018.0,0.2156315]
[1743587817752,0.05719273,85030.0,85026.0,0.1176204]
[1743587818251,3e-08,85030.0,85029.0,0.1176163]
[1743587818451,0.21099516,85034.0,85033.0,0.1176108]
[1743587818652,0.24577464,85045.0,85044.0,0.1175955]
[1743587819153,0.37084082,85045.0,85044.0,0.1175955]
[1743587819353,0.48843502,85045.0,85044.0,0.12949963]
[1743587819656,0.48843502,85045.0,85044.0,0.1806955]
[1743587820151,0.48979502,85045.0,85044.0,0.1813355]
[1743587820952,0.48979502,85045.0,85044.0,0.06374]
[1743587821353,0.48979502,85045.0,85044.0,0.0637]
[1743587821550,0.48979502,85045.0,85044.0,0.1806955]
[1743587821749,0.48979502,85045.0,85044.0,0.1812955]
[1743587821750,0.52159502,85045.0,85044.0,0.1812955]
[1743587822448,0.27582038,85045.0,85044.0,0.1812955]
[1743587824452,0.12642618,85045.0,85044.0,0.1812955]
[1743587824641,0.12642618,85045.0,85044.0,0.19681714]
[1743587826454,0.12642618,85045.0,85044.0,0.19700609]